bitfinex-derivatives/quotes_BNBF0:USTF0_20260110
["timestamp","ask_amount","ask_price","bid_price","bid_amount"]
[1768072636794,0.19050643,913.77,912.87,0.68204411]
[1768072636991,0.19050643,913.77,912.88,0.68204411]
[1768072637195,0.19050643,913.77,912.89,0.68204411]
[1768072637497,0.19050643,913.77,912.9,0.68204411]
[1768072637794,0.19050643,913.77,912.91,0.68204411]
[1768072637996,0.19050643,913.77,912.92,0.68204411]
[1768072638196,0.19050643,913.77,912.93,0.68204411]
[1768072638393,0.19050643,913.77,912.94,0.68204411]
[1768072638597,0.19050643,913.77,912.95,0.68204411]
[1768072638793,0.19050643,913.77,912.96,0.68204411]
[1768072639097,0.19050643,913.77,912.97,0.68204411]
[1768072639296,0.19050643,913.77,912.98,0.68204411]
[1768072639493,0.19050643,913.77,912.99,0.68204411]
[1768072639694,0.19050643,913.77,913.0,0.68204411]
[1768072639992,0.19050643,913.77,913.01,0.68204411]
[1768072640197,0.19050643,913.77,913.02,0.68204411]
[1768072640397,0.19050643,913.77,913.03,0.68204411]
[1768072640693,0.19050643,913.77,913.04,0.68204411]
[1768072640897,0.19050643,913.77,913.05,0.68204411]
[1768072641098,0.19050643,913.77,913.06,0.68204411]
[1768072641303,0.19050643,913.77,912.77,0.81693076]
[1768072641498,0.19050643,913.77,912.78,0.68287524]
[1768072641698,0.19050643,913.77,912.77,0.81693076]
[1768072641699,0.19050643,913.77,912.79,0.68287524]
[1768072641899,0.19050643,913.77,912.8,0.68287524]
[1768072642101,0.19050643,913.77,912.81,0.68287524]
[1768072642302,0.19050643,913.77,912.82,0.68287524]
[1768072642598,0.19050643,913.77,912.83,0.68287524]
[1768072642897,0.19050643,913.77,912.78,0.81693076]
[1768072642898,0.19050643,913.77,912.84,0.68287524]
[1768072643102,0.19050643,913.77,912.85,0.68287524]
[1768072643397,0.19050643,913.77,912.86,0.68287524]
[1768072643698,0.19050643,913.77,912.87,0.68287524]
[1768072643901,0.19050643,913.77,912.88,0.68287524]
[1768072644098,0.19050643,913.77,912.89,0.68287524]
[1768072644300,0.19050643,913.77,912.9,0.68287524]
[1768072644499,0.19050643,913.77,912.91,0.68287524]
[1768072644701,0.19050643,913.77,912.92,0.68287524]
[1768072644997,0.19050643,913.77,912.93,0.68287524]
[1768072645198,0.19050643,913.77,912.94,0.68287524]
[1768072645403,0.19050643,913.77,912.95,0.68287524]
[1768072645702,0.19050643,913.77,912.96,0.68287524]
[1768072645898,0.19050643,913.77,912.97,0.68287524]
[1768072646101,0.19050643,913.77,912.98,0.68287524]
[1768072646300,0.19050643,913.77,912.99,0.68287524]
[1768072646502,0.19050643,913.77,913.0,0.68287524]
[1768072646702,0.19050643,913.77,913.01,0.68287524]
[1768072646906,0.19050643,913.77,913.02,0.68287524]
[1768072647100,0.19050643,913.77,913.03,0.68287524]
[1768072647300,0.19050643,913.77,913.04,0.68287524]
[1768072647501,0.19050643,913.77,913.05,0.68287524]
[1768072647702,0.19050643,913.77,913.06,0.68287524]
[1768072647907,0.19050643,913.77,912.75,0.81693076]
[1768072648102,0.19050643,913.77,912.76,0.68351346]
[1768072648404,0.19050643,913.77,912.77,0.68351346]
[1768072648602,0.19050643,913.77,912.78,0.68351346]
[1768072648802,0.19050643,913.77,912.79,0.68351346]
[1768072649101,0.19050643,913.77,912.8,0.68351346]
[1768072649302,0.19050643,913.77,912.81,0.68351346]
[1768072649502,0.19050643,913.77,912.82,0.68351346]
[1768072649702,0.19050643,913.77,912.83,0.68351346]
[1768072649902,0.19050643,913.77,912.84,0.68351346]
[1768072650103,0.19050643,913.77,912.85,0.68351346]
[1768072650303,0.19050643,913.77,912.86,0.68351346]
[1768072650604,0.19050643,913.77,912.87,0.68351346]
[1768072650806,0.19050643,913.77,912.88,0.68351346]
[1768072651006,0.19050643,913.77,912.89,0.68351346]
[1768072651205,0.19050643,913.77,912.9,0.68351346]
[1768072651407,0.19050643,913.77,912.91,0.68351346]
[1768072651608,0.19050643,913.77,912.92,0.68351346]
[1768072651805,0.19050643,913.77,912.93,0.68351346]
[1768072652008,0.19050643,913.77,912.94,0.68351346]
[1768072652209,0.19050643,913.77,912.95,0.68351346]
[1768072652509,0.19050643,913.77,912.96,0.68351346]
[1768072652706,0.19050643,913.77,912.97,0.68351346]
[1768072652907,0.19050643,913.77,912.98,0.68351346]
[1768072653107,0.19050643,913.77,912.69,0.81693076]
[1768072653306,0.19050643,913.77,912.7,0.68271985]
[1768072653609,0.19050643,913.77,912.71,0.68271985]
[1768072653807,0.19050643,913.77,912.72,0.68271985]
[1768072654010,0.19050643,913.77,912.73,0.68271985]
[1768072654208,0.19050643,913.77,912.74,0.68271985]
[1768072654510,0.19050643,913.77,912.75,0.68271985]
[1768072654806,0.19050643,913.77,912.76,0.68271985]
[1768072655008,0.19050643,913.77,912.77,0.68271985]
[1768072655211,0.19050643,913.77,912.78,0.68271985]
[1768072655409,0.19050643,913.77,912.79,0.68271985]
[1768072655609,0.19050643,913.77,912.8,0.68271985]
[1768072655807,0.19050643,913.77,912.81,0.68271985]
[1768072656008,0.19050643,913.77,912.82,0.68271985]
[1768072656212,0.19050643,913.77,912.83,0.68271985]
[1768072656412,0.19050643,913.77,912.84,0.68271985]
[1768072656613,0.19050643,913.77,912.85,0.68271985]
[1768072656908,0.19050643,913.77,912.86,0.68271985]
[1768072657110,0.19050643,913.77,912.87,0.68271985]
[1768072657413,0.19050643,913.77,912.54,0.81693076]
[1768072657608,0.19050643,913.77,912.55,0.68271576]
[1768072657810,0.19050643,913.77,912.56,0.68271576]
[1768072658011,0.19050643,913.77,912.57,0.68271576]
[1768072658214,0.19050643,913.77,912.58,0.68271576]
[1768072658511,0.19050643,913.77,912.59,0.68271576]
[1768072658711,0.19050643,913.77,912.6,0.68271576]
[1768072658913,0.19050643,913.77,912.61,0.68271576]
[1768072659117,0.19050643,913.77,912.62,0.68271576]
[1768072659317,0.19050643,913.77,912.63,0.68271576]
[1768072659512,0.19050643,913.77,912.64,0.68271576]
[1768072659717,0.19050643,913.77,912.65,0.68271576]
[1768072659915,0.19050643,913.77,912.66,0.68271576]
[1768072660118,0.19050643,913.77,912.67,0.68271576]
[1768072660419,0.19050643,913.77,912.68,0.68271576]
[1768072660619,0.19050643,913.77,912.69,0.68271576]
[1768072660819,0.19050643,913.77,912.7,0.68271576]
[1768072661016,0.19050643,913.77,912.67,2.004]
[1768072661017,0.19050643,913.77,912.71,0.68271576]
[1768072661220,0.19050643,913.77,912.72,0.68271576]
[1768072661516,0.19050643,913.77,912.73,0.68271576]
[1768072661716,0.19050643,913.77,912.74,0.68271576]
[1768072661924,0.19050643,913.77,912.75,0.68271576]
[1768072662222,0.19050643,913.77,912.76,0.68271576]
[1768072662417,0.19050643,913.77,912.77,0.68271576]
[1768072662630,0.19050643,913.77,912.78,0.68271576]
[1768072662830,0.19050643,913.77,912.79,0.68271576]
[1768072663019,0.19050643,913.77,912.67,2.004]
[1768072663223,0.19050643,913.77,912.68,0.68220165]
[1768072663418,0.19050643,913.77,912.69,0.68220165]
[1768072663624,0.19050643,913.77,912.7,0.68220165]
[1768072663920,0.19050643,913.77,912.71,0.68220165]
[1768072664120,0.19050643,913.77,912.72,0.68220165]
[1768072664321,0.19050643,913.77,912.73,0.68220165]
[1768072664519,0.19050643,913.77,912.74,0.68220165]
[1768072664720,0.19050643,913.77,912.75,0.68220165]
[1768072664929,0.19050643,913.77,912.76,0.68220165]
[1768072665230,0.19050643,913.77,912.77,0.68220165]
[1768072665418,0.19050643,913.77,912.78,0.68220165]
[1768072665621,0.19050643,913.77,912.67,2.004]
[1768072665819,0.19050643,913.77,912.68,0.6819678]
[1768072666120,0.19050643,913.77,912.69,0.6819678]
[1768072666321,0.19050643,913.77,912.7,0.6819678]
[1768072666521,0.19050643,913.77,912.71,0.6819678]
[1768072666724,0.19050643,913.77,912.72,0.6819678]
[1768072666924,0.19050643,913.77,912.73,0.6819678]
[1768072667222,0.19050643,913.77,912.74,0.6819678]
[1768072667424,0.19050643,913.77,912.75,0.6819678]
[1768072667624,0.19050643,913.77,912.76,0.6819678]
[1768072667824,0.19050643,913.77,912.77,0.6819678]
[1768072668022,0.19050643,913.77,912.78,0.6819678]
[1768072668326,0.19050643,913.77,912.67,2.004]
[1768072668526,0.19050643,913.77,912.68,0.68180461]
[1768072668726,0.19050643,913.77,912.69,0.68180461]
[1768072668926,0.19050643,913.77,912.7,0.68180461]
[1768072669222,0.19050643,913.77,912.71,0.68180461]
[1768072669425,0.19050643,913.77,912.72,0.68180461]
[1768072669624,0.19050643,913.77,912.73,0.68180461]
[1768072669927,0.19050643,913.77,912.74,0.68180461]
[1768072670127,0.19050643,913.77,912.75,0.68180461]
[1768072670326,0.19050643,913.77,912.76,0.68180461]
[1768072670524,0.19050643,913.77,912.77,0.68180461]
[1768072670727,0.19050643,913.77,912.67,2.004]
[1768072671023,0.19050643,913.77,912.68,0.68173297]
[1768072671327,0.19050643,913.77,912.69,0.68173297]
[1768072671627,0.19050643,913.77,912.7,0.68173297]
[1768072671826,0.19050643,913.77,912.71,0.68173297]
[1768072672024,0.19050643,913.77,912.72,0.68173297]
[1768072672227,0.19050643,913.77,912.73,0.68173297]
[1768072672522,0.19050643,913.77,912.74,0.68173297]
[1768072672722,0.19050643,913.77,912.75,0.68173297]
[1768072672924,0.19050643,913.77,912.76,0.68173297]
[1768072673126,0.19050643,913.77,912.77,0.68173297]
[1768072673330,0.19050643,913.77,912.48,0.81693076]
[1768072673530,0.19050643,913.77,912.49,0.68167385]
[1768072673830,0.19050643,913.77,912.5,0.68167385]
[1768072674032,0.19050643,913.77,912.51,0.68167385]
[1768072674229,0.19050643,913.77,912.52,0.68167385]
[1768072674425,0.19050643,913.77,912.53,0.68167385]
[1768072674629,0.19050643,913.77,912.54,0.68167385]
[1768072674826,0.19050643,913.77,912.55,0.68167385]
[1768072675030,0.19050643,913.77,912.56,0.68167385]
[1768072675230,0.19050643,913.77,912.57,0.68167385]
[1768072675426,0.19050643,913.77,912.58,0.68167385]
[1768072675625,0.19050643,913.77,912.59,0.68167385]
[1768072675826,0.19050643,913.77,912.6,0.68167385]
[1768072676026,0.19050643,913.77,912.61,0.68167385]
[1768072676327,0.19050643,913.77,912.62,0.68167385]
[1768072676525,0.19050643,913.77,912.63,0.68167385]
[1768072676730,0.19050643,913.77,912.64,0.68167385]
[1768072676928,0.19050643,913.77,912.65,0.68167385]
[1768072677127,0.19050643,913.77,912.66,0.68167385]
[1768072677329,0.19050643,913.77,912.67,0.68167385]
[1768072677531,0.19050643,913.77,912.68,0.68167385]
[1768072677729,0.19050643,913.77,912.69,0.68167385]
[1768072677930,0.19050643,913.77,912.7,0.68167385]
[1768072678129,0.19050643,913.77,912.71,0.68167385]
[1768072678329,0.19050643,913.77,912.49,1.801]
[1768072678630,0.19050643,913.77,912.5,0.68169781]
[1768072678828,0.19050643,913.77,912.51,0.68169781]
[1768072679030,0.19050643,913.77,912.52,0.68169781]
[1768072679228,0.19050643,913.77,912.53,0.68169781]
[1768072679531,0.19050643,913.77,912.54,0.68169781]
[1768072679728,0.19050643,913.77,912.55,0.68169781]
[1768072679929,0.19050643,913.77,912.56,0.68169781]
[1768072680229,0.19050643,913.77,912.57,0.68169781]
[1768072680433,0.19050643,913.77,912.58,0.68169781]
[1768072680633,0.19050643,913.77,912.59,0.68169781]
[1768072680830,0.19050643,913.77,912.6,0.68169781]
[1768072681035,0.19050643,913.77,912.61,0.68169781]
[1768072681336,0.19050643,913.77,912.62,0.68169781]
[1768072681531,0.19050643,913.77,912.63,0.68169781]
[1768072681730,0.19050643,913.77,912.64,0.68169781]
[1768072681934,0.19050643,913.77,912.49,1.801]
[1768072681935,0.19050643,913.77,912.65,0.68169781]
[1768072682132,0.19050643,913.77,912.66,0.68169781]
[1768072682332,0.19050643,913.77,912.67,0.68169781]
[1768072682532,0.19050643,913.77,912.68,0.68169781]
[1768072682731,0.19050643,913.77,912.49,1.801]
[1768072682732,0.19050643,913.77,912.69,0.68169781]
[1768072682935,4.93444633,914.09,912.7,0.68169781]
[1768072683134,4.93444633,914.09,912.71,0.68169781]
[1768072683332,0.19049548,913.93,912.72,0.68169781]
[1768072683532,0.19049548,913.93,912.73,0.68169781]
[1768072683736,0.19049548,913.93,912.74,0.68169781]
[1768072683933,0.19049548,913.93,912.75,0.68169781]
[1768072684135,0.19049548,913.93,912.76,0.68169781]
[1768072684332,0.19049548,913.93,912.77,0.68169781]
[1768072684534,0.19049548,913.93,912.78,0.68169781]
[1768072684834,0.19049548,913.93,912.79,0.68169781]
[1768072685030,0.19049548,913.93,912.8,0.68169781]
[1768072685235,0.19049548,913.93,912.81,0.68169781]
[1768072685435,0.19049548,913.93,912.82,0.68169781]
[1768072685637,0.19049548,913.93,912.83,0.68169781]
[1768072685836,0.19049548,913.93,912.84,0.68169781]
[1768072686034,0.19049548,913.93,912.85,0.68169781]
[1768072686234,0.19049548,913.93,912.86,0.68169781]
[1768072686434,0.19049548,913.93,912.87,0.68169781]
[1768072686632,0.19049548,913.93,912.69,0.81693076]
[1768072686633,0.19049548,913.93,912.88,0.68169781]
[1768072686933,0.19049548,913.93,912.89,0.68169781]
[1768072687134,0.19049548,913.93,912.9,0.68169781]
[1768072687432,0.19049548,913.93,912.91,0.68169781]
[1768072687634,0.19049548,913.93,912.92,0.68169781]
[1768072687836,0.19049548,913.93,912.93,0.68169781]
[1768072688036,0.19049548,913.93,912.94,0.68169781]
[1768072688235,0.19049548,913.93,912.95,0.68169781]
[1768072688537,0.19049548,913.93,912.96,0.68169781]
[1768072688738,0.19049548,913.93,912.97,0.68169781]
[1768072688933,0.19049548,913.93,912.98,0.68169781]
[1768072689234,0.19049548,913.93,912.99,0.68169781]
[1768072689436,0.19049548,913.93,913.0,0.68169781]
[1768072689638,0.19049548,913.93,913.01,0.68169781]
[1768072689835,0.19049548,913.93,913.02,0.68169781]
[1768072690134,0.19049548,913.93,913.03,0.68169781]
[1768072690339,0.19049548,913.93,913.04,0.68169781]
[1768072690537,0.19049548,913.93,913.02,7.15137571]
[1768072690740,0.19049548,913.93,913.03,0.68178577]
[1768072690940,0.19049548,913.93,913.04,0.68178577]
[1768072691240,0.19049548,913.93,913.02,7.15137571]
[1768072691541,0.19049548,913.93,913.03,0.6816936]
[1768072691740,0.19049548,913.93,913.04,0.6816936]
[1768072692040,0.19049548,913.93,913.05,0.6816936]
[1768072692341,4.93444633,914.09,913.06,0.6816936]
[1768072692536,4.93444633,914.09,913.07,0.6816936]
[1768072692738,0.19046212,914.07,913.08,0.6816936]
[1768072692936,0.19046212,914.07,913.09,0.6816936]
[1768072693140,0.19046212,914.07,913.1,0.6816936]
[1768072693438,0.19046212,914.07,913.11,0.6816936]
[1768072693636,0.19046212,914.07,913.12,0.6816936]
[1768072693941,0.19046212,914.07,913.13,0.6816936]
[1768072694138,0.19046212,914.07,913.02,7.15137571]
[1768072694341,0.19046212,914.07,913.03,0.68110791]
[1768072694536,0.19046212,914.07,913.04,0.68110791]
[1768072694738,0.19046212,914.07,913.05,0.68110791]
[1768072694939,0.19046212,914.07,913.06,0.68110791]
[1768072695139,0.19046212,914.07,913.07,0.68110791]
[1768072695442,0.19046212,914.07,913.08,0.68110791]
[1768072695644,0.19046212,914.07,913.09,0.68110791]
[1768072695942,0.19046212,914.07,913.1,0.68110791]
[1768072696143,0.19046212,914.07,913.11,0.68110791]
[1768072696343,0.19046212,914.07,913.02,7.15137571]
[1768072696638,0.19046212,914.07,913.03,0.68064529]
[1768072696938,0.19046212,914.07,913.04,0.68064529]
[1768072697144,0.19046212,914.07,913.05,0.68064529]
[1768072697341,0.19046212,914.07,913.02,7.15137571]
[1768072697545,0.19046212,914.07,913.03,0.68051711]
[1768072697744,0.19046212,914.07,913.04,0.68051711]
[1768072697941,0.19046212,914.07,913.02,7.15137571]
[1768072698145,0.19046212,914.07,913.03,0.68051711]
[1768072698345,0.19046212,914.07,913.04,0.68051711]
[1768072698545,0.19046212,914.07,913.02,7.15137571]
[1768072698744,0.19046212,914.07,913.03,0.68039842]
[1768072699043,0.19046212,914.07,913.04,0.68039842]
[1768072699246,0.19046212,914.07,913.02,7.15137571]
[1768072699449,0.19046212,914.07,913.03,0.68028889]
[1768072699644,0.19046212,914.07,913.02,7.15137571]
[1768072699845,0.19046212,914.07,913.03,0.68028908]
[1768072700046,0.19046212,914.07,913.02,7.15137571]
[1768072700247,0.19046212,914.07,913.03,0.68028908]
[1768072700549,0.19046212,914.07,913.02,7.15137571]
[1768072700750,0.19046212,914.07,913.03,0.6801881]
[1768072700951,0.19046212,914.07,913.02,7.15137571]
[1768072701150,0.19046212,914.07,913.03,0.68018811]
[1768072701350,0.19046212,914.07,913.02,7.15137571]
[1768072702646,0.19046212,914.07,913.03,1.977]
[1768072707048,0.19046212,914.07,913.04,0.67992214]
[1768072707253,0.19046212,914.07,913.03,1.977]
[1768072707451,0.19046212,914.07,913.04,0.67992057]
[1768072707752,0.19046212,914.07,913.03,1.977]
[1768072707950,0.19046212,914.07,913.04,0.67992057]
[1768072708153,0.19046212,914.07,913.03,1.977]
[1768072708454,0.19046212,914.07,913.04,0.67991533]
[1768072708652,0.19046212,914.07,913.03,1.977]
[1768072708852,0.19046212,914.07,913.04,0.67992932]
[1768072709050,0.19046212,914.07,913.03,1.977]
[1768072709250,0.19046212,914.07,913.04,0.67992951]
[1768072709453,0.19046212,914.07,913.03,1.977]
[1768072709650,0.19046212,914.07,913.04,0.67994839]
[1768072709850,0.19046212,914.07,913.03,1.977]
[1768072710056,0.19046212,914.07,913.04,0.67994849]
[1768072710253,0.19046212,914.07,913.03,1.977]
[1768072710458,0.19046212,914.07,913.04,0.67997784]
[1768072710654,0.19046212,914.07,913.03,1.977]
[1768072710855,0.19046212,914.07,913.04,0.67997784]
[1768072711053,0.19046212,914.07,913.03,1.977]
[1768072711257,0.19046212,914.07,913.04,0.67997784]
[1768072711454,0.19046212,914.07,913.05,0.67997784]
[1768072711757,0.19046212,914.07,913.03,1.977]
[1768072711955,0.19046212,914.07,913.04,0.680018]
[1768072712152,0.19046212,914.07,913.05,0.680018]
[1768072712355,0.19046212,914.07,913.03,1.977]
[1768072712555,0.19046212,914.07,913.04,0.68006888]
[1768072712758,0.19046212,914.07,913.05,0.68006888]
[1768072713058,0.19046212,914.07,913.03,1.977]
[1768072713258,0.19046212,914.07,913.04,0.68006884]
[1768072713558,0.19046212,914.07,913.05,0.68006884]
[1768072713754,0.19046212,914.07,913.03,1.977]
[1768072713953,0.19046212,914.07,913.04,0.6801311]
[1768072714154,0.19046212,914.07,913.05,0.6801311]
[1768072714457,0.19046212,914.07,913.06,0.68020539]
[1768072714757,0.19046212,914.07,913.03,1.977]
[1768072714958,0.19046212,914.07,913.04,0.68020539]
[1768072715159,0.19046212,914.07,913.05,0.68020539]
[1768072715459,0.19046212,914.07,913.06,0.68020539]
[1768072715758,0.19046212,914.07,913.03,1.977]
[1768072715952,0.19046212,914.07,913.04,0.68029231]
[1768072716154,0.19046212,914.07,913.05,0.68029231]
[1768072716355,0.19046212,914.07,913.06,0.68029231]
[1768072716557,0.19046212,914.07,913.07,0.68029231]
[1768072716755,0.19046212,914.07,913.03,1.977]
[1768072716960,0.19046212,914.07,913.04,0.68039278]
[1768072717259,0.19046212,914.07,913.05,0.68039278]
[1768072717459,0.19046212,914.07,913.06,0.68039278]
[1768072717661,0.19046212,914.07,913.03,1.977]
[1768072717861,0.19046212,914.07,913.04,0.68050771]
[1768072718057,0.19046212,914.07,913.05,0.68050771]
[1768072718262,0.19046212,914.07,913.06,0.68050771]
[1768072718463,0.19046212,914.07,913.07,0.68050771]
[1768072718658,0.19046212,914.07,913.03,1.977]
[1768072718861,0.19046212,914.07,913.04,0.68063893]
[1768072719060,0.19046212,914.07,913.05,0.68063893]
[1768072719261,0.19046212,914.07,913.06,0.68063893]
[1768072719465,0.19046212,914.07,913.07,0.68063893]
[1768072719660,0.19046212,914.07,913.08,0.68063893]
[1768072719859,0.19046212,914.07,913.03,1.977]
[1768072720062,0.19046212,914.07,913.04,0.68078844]
[1768072720263,0.19046212,914.07,913.05,0.68078844]
[1768072720562,0.19046212,914.07,913.03,1.977]
[1768072720563,0.19046212,914.07,913.06,0.68078844]
[1768072720759,0.19046212,914.07,913.07,0.68078844]
[1768072720964,0.19046212,914.07,913.08,0.68078844]
[1768072721259,0.19046212,914.07,913.09,0.68078844]
[1768072721465,0.19046212,914.07,913.1,0.68078844]
[1768072721660,0.19046212,914.07,913.03,1.977]
[1768072721862,0.19046212,914.07,913.04,0.68043756]
[1768072722061,0.19046212,914.07,913.05,0.68043756]
[1768072722261,0.19046212,914.07,913.06,0.68043756]
[1768072722565,0.19046212,914.07,913.07,0.68043756]
[1768072722865,0.19046212,914.07,913.08,0.68043756]
[1768072723066,0.19046212,914.07,913.09,0.68043756]
[1768072723264,0.19046212,914.07,913.1,0.68043756]
[1768072723467,0.19046212,914.07,913.11,0.68043756]
[1768072723667,0.19046212,914.07,913.12,0.68043756]
[1768072723863,0.19046212,914.07,913.03,1.977]
[1768072724167,0.19046212,914.07,913.04,0.68092435]
[1768072724363,0.19046212,914.07,913.05,0.68092435]
[1768072724567,0.19046212,914.07,913.06,0.68092435]
[1768072724767,0.19046212,914.07,913.07,0.68092435]
[1768072724967,0.19046212,914.07,913.08,0.68092435]
[1768072725168,0.19046212,914.07,913.09,0.68092435]
[1768072725369,0.19046212,914.07,913.1,0.68092435]
[1768072725565,0.19046212,914.07,913.11,0.68092435]
[1768072725766,0.19046212,914.07,913.12,0.68092435]
[1768072726066,0.19046212,914.07,913.13,0.68092435]
[1768072726268,0.19046212,914.07,913.14,0.68092435]
[1768072726470,0.19046212,914.07,913.15,0.68092435]
[1768072726669,0.19046212,914.07,913.16,0.68092435]
[1768072726869,0.19046212,914.07,913.17,0.68092435]
[1768072727070,0.19046212,914.07,913.03,1.977]
[1768072727265,0.19046212,914.07,913.04,0.68165507]
[1768072727470,0.19046212,914.07,913.05,0.68165507]
[1768072727671,0.19046212,914.07,913.06,0.68165507]
[1768072727866,0.19046212,914.07,913.07,0.68165507]
[1768072728066,0.19046212,914.07,913.08,0.68165507]
[1768072728270,0.19046212,914.07,913.09,0.68165507]
[1768072728570,0.19046212,914.07,913.1,0.68165507]
[1768072728768,0.19046212,914.07,913.11,0.68165507]
[1768072729069,0.19046212,914.07,913.12,0.68165507]
[1768072729266,0.19046212,914.07,913.13,0.68232325]
[1768072729465,0.19046212,914.07,913.03,1.977]
[1768072729666,0.19046212,914.07,913.04,0.68233231]
[1768072729869,0.19046212,914.07,913.05,0.68233231]
[1768072730068,0.19046212,914.07,913.06,0.68233231]
[1768072730268,0.19046212,914.07,913.07,0.68233231]
[1768072730472,0.19046212,914.07,913.08,0.68233231]
[1768072730668,0.19046212,914.07,913.09,0.68233231]
[1768072730869,0.19046212,914.07,913.1,0.68233231]
[1768072731168,0.19046212,914.07,913.11,0.68233231]
[1768072731368,0.19046212,914.07,913.12,0.68233231]
[1768072731573,0.19046212,914.07,913.13,0.68233231]
[1768072731868,0.19046212,914.07,913.03,1.977]
[1768072732072,0.19046212,914.07,913.04,0.68247487]
[1768072732269,0.19046212,914.07,913.05,0.68247487]
[1768072732473,0.19046212,914.07,913.06,0.68247487]
[1768072732770,0.19046212,914.07,913.07,0.68247487]
[1768072732972,0.19046212,914.07,913.08,0.68247487]
[1768072733169,0.19046212,914.07,913.09,0.68247487]
[1768072733373,0.19046212,914.07,913.1,0.68247487]
[1768072733569,0.19046212,914.07,913.11,0.68247487]
[1768072733771,0.19046212,914.07,913.12,0.68247487]
[1768072733974,0.19046212,914.07,913.13,0.68247487]
[1768072734275,0.19046212,914.07,913.14,0.68247487]
[1768072734475,0.19046212,914.07,913.15,0.68247487]
[1768072734672,0.19046212,914.07,913.03,1.977]
[1768072734871,0.19046212,914.07,913.04,0.68274673]
[1768072735073,0.19046212,914.07,913.05,0.68274673]
[1768072735272,0.19046212,914.07,913.06,0.68274673]
[1768072735572,0.19046212,914.07,913.07,0.68274673]
[1768072735774,0.19046212,914.07,913.08,0.68274673]
[1768072735974,0.19046212,914.07,913.09,0.68274673]
[1768072736173,0.19046212,914.07,913.1,0.68274673]
[1768072736376,0.19046212,914.07,913.11,0.68274673]
[1768072736575,0.19046212,914.07,913.12,0.68274673]
[1768072736776,0.19046212,914.07,913.13,0.68274673]
[1768072737080,0.19046212,914.07,913.14,0.68274673]
[1768072737280,0.19046212,914.07,913.15,0.68274673]
[1768072737480,0.19046212,914.07,913.16,0.68274673]
[1768072737777,0.19046212,914.07,913.17,0.68274673]
[1768072738075,0.19046212,914.07,913.18,0.68274673]
[1768072738280,0.19046212,914.07,913.19,0.68274673]
[1768072738481,0.19046212,914.07,913.2,0.68274673]
[1768072738682,0.19046212,914.07,913.21,0.68274673]
[1768072738877,0.19046212,914.07,913.22,0.68274673]
[1768072739078,0.19046212,914.07,913.23,0.68274673]
[1768072739281,0.19046212,914.07,913.24,0.68274673]
[1768072739582,0.19046212,914.07,913.25,0.68274673]
[1768072739777,0.19046212,914.07,913.26,0.68274673]
[1768072739982,0.19046212,914.07,913.03,1.977]
[1768072740282,0.19046212,914.07,913.04,0.68328121]
[1768072740477,0.19046212,914.07,913.05,0.68328121]
[1768072740777,0.19046212,914.07,913.06,0.68328121]
[1768072740980,0.19046212,914.07,913.07,0.68328121]
[1768072741177,0.19046212,914.07,913.08,0.68328121]
[1768072741382,0.19046212,914.07,913.09,0.68328121]
[1768072741680,0.19046212,914.07,913.1,0.68328121]
[1768072741882,0.19046212,914.07,913.11,0.68328121]
[1768072742083,0.19046212,914.07,913.12,0.68328121]
[1768072742280,0.19046212,914.07,913.13,0.68328121]
[1768072742480,0.19046212,914.07,913.03,1.977]
[1768072742481,0.19046212,914.07,913.14,0.68328121]
[1768072742681,0.19046212,914.07,913.15,0.68328121]
[1768072742880,0.19046212,914.07,913.16,0.68328121]
[1768072743082,0.19046212,914.07,913.17,0.68328121]
[1768072743281,0.19046212,914.07,913.18,0.68328121]
[1768072743483,0.19046212,914.07,913.19,0.68328121]
[1768072743784,0.19046212,914.07,913.2,0.68328121]
[1768072743983,0.19046212,914.07,913.21,0.68328121]
[1768072744284,0.19046212,914.07,913.22,0.68328121]
[1768072744485,0.19046212,914.07,913.23,0.68328121]
[1768072744783,0.19046212,914.07,913.24,0.68328121]
[1768072745082,0.19046212,914.07,913.25,0.68328121]
[1768072745386,0.19046212,914.07,913.26,0.68328121]
[1768072745682,0.19046212,914.07,913.03,1.977]
[1768072745883,0.19046212,914.07,913.04,0.68328268]
[1768072746079,0.19046212,914.07,913.05,0.68328268]
[1768072746283,0.19046212,914.07,913.06,0.68328268]
[1768072746482,0.19046212,914.07,913.07,0.68328268]
[1768072746682,0.19046212,914.07,913.08,0.68328268]
[1768072746882,0.19046212,914.07,913.09,0.68328268]
[1768072747081,0.19046212,914.07,913.1,0.68328268]
[1768072747285,0.19046212,914.07,913.11,0.68328268]
[1768072747584,0.19046212,914.07,913.12,0.68328268]
[1768072747780,0.19046212,914.07,913.13,0.68328268]
[1768072748084,0.19046212,914.07,913.14,0.68328268]
[1768072748281,0.19046212,914.07,913.15,0.68328268]
[1768072748583,0.19046212,914.07,913.16,0.68328268]
[1768072748782,0.19046212,914.07,913.17,0.68328268]
[1768072748985,0.19046212,914.07,913.18,0.68328268]
[1768072749186,0.19046212,914.07,913.19,0.68328268]
[1768072749380,0.19046212,914.07,913.2,0.68328268]
[1768072749587,0.19046212,914.07,913.21,0.68328268]
[1768072749882,0.19046212,914.07,913.22,0.68328268]
[1768072750184,0.19046212,914.07,913.23,0.68328268]
[1768072750383,0.19046212,914.07,913.24,0.68328268]